[Event "*** Titled Tuesday Blitz"]
[Site "Chess.com"]
[Date "2020.02.04"]
[Round "9"]
[White "Nalatac"]
[Black "SergioGarciaFuentes"]
[Result "1-0"]
[WhiteElo "2274"]
[BlackElo "2158"]
[TimeControl "180+2"]
[EndTime "11:12:39 PST"]
[Termination "Nalatac won by resignation"]

1. d4 {[%clk 0:03:01.9]} 1... d5 {[%clk 0:03:00.5]} 2. c4 {[%clk 0:03:01.4]}
2... c6 {[%clk 0:02:58.6]} 3. Nf3 {[%clk 0:02:56.9]} 3... Nf6 {[%clk 0:02:58.9]}
4. Nc3 {[%clk 0:02:56.2]} 4... a6 {[%clk 0:02:59.1]} 5. cxd5 {[%clk 0:02:52.4]}
5... cxd5 {[%clk 0:02:59.4]} 6. Bf4 {[%clk 0:02:53.4]} 6... Nc6 {[%clk
0:03:00.2]} 7. Rc1 {[%clk 0:02:47.6]} 7... e6 {[%clk 0:02:56.7]} 8. e3 {[%clk
0:02:38.1]} 8... Be7 {[%clk 0:02:54.9]} 9. Bd3 {[%clk 0:02:35.3]} 9... O-O
{[%clk 0:02:54.9]} 10. h3 {[%clk 0:02:24.1]} 10... Bd6 {[%clk 0:02:52.2]} 11.
Bxd6 {[%clk 0:01:50.3]} 11... Qxd6 {[%clk 0:02:52.2]} 12. O-O {[%clk 0:01:41.6]}
12... b5 {[%clk 0:02:42]} 13. a4 {[%clk 0:01:21.9]} 13... b4 {[%clk 0:02:31.7]}
14. Nb1 {[%clk 0:01:22.6]} 14... Bb7 {[%clk 0:02:17.8]} 15. Nbd2 {[%clk
0:01:23.7]} 15... e5 {[%clk 0:01:51.2]} 16. dxe5 {[%clk 0:01:07.8]} 16... Nxe5
{[%clk 0:01:51.7]} 17. Nxe5 {[%clk 0:00:45.3]} 17... Qxe5 {[%clk 0:01:52.3]} 18.
Qb3 {[%clk 0:00:46.3]} 18... d4 {[%clk 0:01:47.2]} 19. e4 {[%clk 0:00:18.5]}
19... Nxe4 {[%clk 0:01:20.5]} 20. Nxe4 {[%clk 0:00:15.4]} 20... Bxe4 {[%clk
0:01:21.1]} 21. Rfe1 {[%clk 0:00:10.9]} 21... Qd5 {[%clk 0:01:17.9]} 22. Qxd5
{[%clk 0:00:04]} 22... Bxd5 {[%clk 0:01:18.5]} 23. Rc5 {[%clk 0:00:02.7]} 23...
Be6 {[%clk 0:01:13.9]} 24. Re4 {[%clk 0:00:02.9]} 24... Rfd8 {[%clk 0:01:13.5]}
25. a5 {[%clk 0:00:03.7]} 25... Rd6 {[%clk 0:01:11.6]} 26. f4 {[%clk 0:00:04.4]}
26... g6 {[%clk 0:01:02.6]} 27. g4 {[%clk 0:00:05]} 27... Rad8 {[%clk
0:00:49.7]} 28. f5 {[%clk 0:00:05.5]} 28... Bc8 {[%clk 0:00:49.9]} 29. Kf2
{[%clk 0:00:03.8]} 29... Kg7 {[%clk 0:00:47.4]} 30. Ree5 {[%clk 0:00:02.9]}
30... Bb7 {[%clk 0:00:40.7]} 31. Re7 {[%clk 0:00:03]} 31... R8d7 {[%clk
0:00:38.7]} 32. Rxd7 {[%clk 0:00:03.5]} 32... Rxd7 {[%clk 0:00:40.2]} 33. g5
{[%clk 0:00:04.2]} 33... gxf5 {[%clk 0:00:34.6]} 34. Rxf5 {[%clk 0:00:04.2]}
34... Rd5 {[%clk 0:00:35.5]} 35. Rxd5 {[%clk 0:00:03.5]} 35... Bxd5 {[%clk
0:00:37.1]} 36. Bxa6 {[%clk 0:00:05]} 36... Kg6 {[%clk 0:00:38.6]} 37. h4 {[%clk
0:00:05.7]} 37... Kh5 {[%clk 0:00:39.5]} 38. Kg3 {[%clk 0:00:06.8]} 38... Be4
{[%clk 0:00:40.9]} 39. Be2+ {[%clk 0:00:06.8]} 39... Kg6 {[%clk 0:00:41]} 40.
Bf3 {[%clk 0:00:06.8]} 40... Bd3 {[%clk 0:00:39.2]} 41. Kf4 {[%clk 0:00:08]}
41... f6 {[%clk 0:00:37.3]} 42. Be4+ {[%clk 0:00:07.2]} 42... Bxe4 {[%clk
0:00:34.2]} 43. Kxe4 {[%clk 0:00:09.1]} 1-0

[Event "*** Titled Tuesday Blitz"]
[Site "Chess.com"]
[Date "2020.02.04"]
[Round "9"]
[White "petrpalachev"]
[Black "Bigfish1995"]
[Result "1-0"]
[WhiteElo "2693"]
[BlackElo "3016"]
[TimeControl "180+2"]
[EndTime "11:12:45 PST"]
[Termination "petrpalachev won by resignation"]

1. d4 {[%clk 0:03:01.9]} 1... Nf6 {[%clk 0:03:00.7]} 2. c4 {[%clk 0:03:03.4]}
2... g6 {[%clk 0:03:02.2]} 3. Nc3 {[%clk 0:03:04.1]} 3... Bg7 {[%clk 0:03:03.8]}
4. e4 {[%clk 0:03:04.9]} 4... d6 {[%clk 0:03:05.4]} 5. h3 {[%clk 0:03:06.2]}
5... O-O {[%clk 0:03:06.6]} 6. Be3 {[%clk 0:03:07.8]} 6... Na6 {[%clk
0:03:07.8]} 7. g4 {[%clk 0:03:06.3]} 7... e5 {[%clk 0:03:02.2]} 8. d5 {[%clk
0:03:07.3]} 8... Nc5 {[%clk 0:02:58.5]} 9. f3 {[%clk 0:03:00.4]} 9... a5 {[%clk
0:02:54.9]} 10. Nge2 {[%clk 0:02:59.1]} 10... Kh8 {[%clk 0:02:50.2]} 11. Ng3
{[%clk 0:02:58.8]} 11... Ng8 {[%clk 0:02:50.8]} 12. h4 {[%clk 0:02:57]} 12... f5
{[%clk 0:02:46.5]} 13. h5 {[%clk 0:02:38.7]} 13... f4 {[%clk 0:02:37.9]} 14.
hxg6 {[%clk 0:02:38.1]} 14... h6 {[%clk 0:02:39.4]} 15. Bxc5 {[%clk 0:02:29.8]}
15... fxg3 {[%clk 0:02:06.8]} 16. Be3 {[%clk 0:02:28.5]} 16... Bf6 {[%clk
0:02:08]} 17. Rh5 {[%clk 0:02:18.9]} 17... Kg7 {[%clk 0:02:02.2]} 18. Qd2 {[%clk
0:02:17.1]} 18... Bg5 {[%clk 0:02:00]} 19. Bxg5 {[%clk 0:02:13.6]} 19... hxg5
{[%clk 0:02:00.7]} 20. Qe3 {[%clk 0:02:14.4]} 20... Qf6 {[%clk 0:01:54.5]} 21.
Bg2 {[%clk 0:02:12.3]} 21... Kxg6 {[%clk 0:01:37.3]} 22. Ne2 {[%clk 0:02:09.1]}
22... Bxg4 {[%clk 0:01:15.7]} 23. fxg4 {[%clk 0:01:47.5]} 23... Qf2+ {[%clk
0:01:16.7]} 24. Kd2 {[%clk 0:01:49]} 24... Rf4 {[%clk 0:01:14.9]} 25. Qxf2
{[%clk 0:01:45.2]} 25... Rxf2 {[%clk 0:01:15.6]} 26. Rg1 {[%clk 0:01:46.7]}
26... b5 {[%clk 0:00:58.3]} 27. cxb5 {[%clk 0:01:37.1]} 27... a4 {[%clk
0:00:56.9]} 28. a3 {[%clk 0:01:37]} 28... Rb8 {[%clk 0:00:57]} 29. Rh3 {[%clk
0:01:28.8]} 29... Rxb5 {[%clk 0:00:56.2]} 30. b4 {[%clk 0:01:30.1]} 30... axb3
{[%clk 0:00:52.2]} 31. Rxg3 {[%clk 0:01:31.4]} 31... b2 {[%clk 0:00:46.7]} 32.
Rb1 {[%clk 0:01:32.5]} 32... Ne7 {[%clk 0:00:45.5]} 33. a4 {[%clk 0:01:31.8]}
33... Rb4 {[%clk 0:00:45.7]} 34. a5 {[%clk 0:01:28.3]} 34... Nc8 {[%clk
0:00:41.6]} 35. Ke1 {[%clk 0:01:24.7]} 35... Rf7 {[%clk 0:00:33.8]} 36. Ra3
{[%clk 0:01:25.8]} 36... Rh7 {[%clk 0:00:20]} 37. Ra2 {[%clk 0:01:26]} 37... Rh2
{[%clk 0:00:21.2]} 38. Kf1 {[%clk 0:01:26.5]} 38... Rc4 {[%clk 0:00:14]} 39.
Rbxb2 {[%clk 0:01:24.1]} 39... c6 {[%clk 0:00:15]} 40. dxc6 {[%clk 0:01:23]}
40... Na7 {[%clk 0:00:12.6]} 41. Rc2 {[%clk 0:01:24.1]} 41... Rb4 {[%clk
0:00:12.9]} 42. c7 {[%clk 0:01:24.1]} 42... Rb1+ {[%clk 0:00:13.9]} 43. Kf2
{[%clk 0:01:24.9]} 43... Rh8 {[%clk 0:00:14.6]} 44. Ng3 {[%clk 0:01:24.3]} 44...
Kf6 {[%clk 0:00:13.3]} 45. Nf5 {[%clk 0:01:25.5]} 45... Ke6 {[%clk 0:00:14.8]}
46. Rd2 {[%clk 0:01:26.1]} 46... Nb5 {[%clk 0:00:15.2]} 47. Rab2 {[%clk
0:01:25.9]} 47... Rxb2 {[%clk 0:00:14.9]} 48. Rxb2 {[%clk 0:01:27.8]} 48... Nxc7
{[%clk 0:00:16.7]} 49. Rb6 {[%clk 0:01:27.4]} 49... Rd8 {[%clk 0:00:17.5]} 50.
a6 {[%clk 0:01:25.7]} 50... Na8 {[%clk 0:00:18.6]} 51. Rc6 {[%clk 0:01:22.5]}
51... Rd7 {[%clk 0:00:19.6]} 52. Bf1 {[%clk 0:01:21.4]} 52... Ra7 {[%clk
0:00:18.5]} 53. Bc4+ {[%clk 0:01:21.3]} 53... Kd7 {[%clk 0:00:19.7]} 54. Rxd6+
{[%clk 0:01:21.5]} 54... Kc7 {[%clk 0:00:21.4]} 1-0

[Event "*** Titled Tuesday Blitz"]
[Site "Chess.com"]
[Date "2020.02.04"]
[Round "9"]
[White "Atanejhad"]
[Black "VladDobrov"]
[Result "1-0"]
[WhiteElo "2628"]
[BlackElo "2893"]
[TimeControl "180+2"]
[EndTime "11:12:55 PST"]
[Termination "Atanejhad won by resignation"]

1. e4 {[%clk 0:03:01.9]} 1... c6 {[%clk 0:01:49.6]} 2. d4 {[%clk 0:02:58.9]}
2... d5 {[%clk 0:01:51.5]} 3. exd5 {[%clk 0:03:00.7]} 3... cxd5 {[%clk
0:01:52.5]} 4. Bd3 {[%clk 0:03:02.3]} 4... Nc6 {[%clk 0:01:53.9]} 5. c3 {[%clk
0:03:03.4]} 5... Qc7 {[%clk 0:01:55.5]} 6. h3 {[%clk 0:02:51]} 6... e6 {[%clk
0:01:56]} 7. Nf3 {[%clk 0:02:51.9]} 7... Bd6 {[%clk 0:01:57.5]} 8. O-O {[%clk
0:02:52.9]} 8... Nge7 {[%clk 0:01:59]} 9. Re1 {[%clk 0:02:52.7]} 9... Bd7 {[%clk
0:01:59.8]} 10. Nbd2 {[%clk 0:02:49.5]} 10... f6 {[%clk 0:01:59.1]} 11. Qc2
{[%clk 0:02:43.3]} 11... O-O-O {[%clk 0:01:54]} 12. b4 {[%clk 0:02:42.6]} 12...
Kb8 {[%clk 0:01:53.1]} 13. Nb3 {[%clk 0:02:42.6]} 13... e5 {[%clk 0:01:49.7]}
14. b5 {[%clk 0:02:00.2]} 14... e4 {[%clk 0:01:49.2]} 15. bxc6 {[%clk
0:02:00.7]} 15... exd3 {[%clk 0:01:47.4]} 16. Qxd3 {[%clk 0:02:02.3]} 16... Nxc6
{[%clk 0:01:47.7]} 17. Nc5 {[%clk 0:01:55.2]} 17... Rde8 {[%clk 0:01:39.3]} 18.
Nxd7+ {[%clk 0:01:34.9]} 18... Qxd7 {[%clk 0:01:37.5]} 19. Rxe8+ {[%clk
0:01:19.5]} 19... Qxe8 {[%clk 0:01:23.8]} 20. Rb1 {[%clk 0:01:19]} 20... Qd7
{[%clk 0:01:10.7]} 21. c4 {[%clk 0:01:09.1]} 21... Nb4 {[%clk 0:01:07.3]} 22.
Qb3 {[%clk 0:00:48.2]} 22... dxc4 {[%clk 0:01:06.8]} 23. Qxc4 {[%clk 0:00:50.1]}
23... Nd5 {[%clk 0:01:08]} 24. Ne5 {[%clk 0:00:27.3]} 24... Bxe5 {[%clk
0:00:50.4]} 25. dxe5 {[%clk 0:00:26.5]} 25... fxe5 {[%clk 0:00:50.7]} 26. Qe4
{[%clk 0:00:20.9]} 26... Re8 {[%clk 0:00:18.3]} 27. Bb2 {[%clk 0:00:21.8]} 27...
Ka8 {[%clk 0:00:17.1]} 28. Rd1 {[%clk 0:00:16.1]} 28... Rd8 {[%clk 0:00:10.2]}
29. Bxe5 {[%clk 0:00:15.5]} 29... Qe6 {[%clk 0:00:07.7]} 30. f4 {[%clk
0:00:14.5]} 30... g6 {[%clk 0:00:08.3]} 31. Qf3 {[%clk 0:00:13.3]} 31... a6
{[%clk 0:00:08.9]} 32. Kh1 {[%clk 0:00:13.5]} 32... Rd7 {[%clk 0:00:10.3]} 33.
Qe4 {[%clk 0:00:13.6]} 33... Nf6 {[%clk 0:00:10.3]} 34. Qb1 {[%clk 0:00:12.3]}
34... Rxd1+ {[%clk 0:00:09.9]} 35. Qxd1 {[%clk 0:00:14.2]} 35... Nd7 {[%clk
0:00:06.5]} 36. Qd4 {[%clk 0:00:14.7]} 36... Qb6 {[%clk 0:00:03.7]} 37. Qxd7
{[%clk 0:00:15]} 37... Qb1+ {[%clk 0:00:04.7]} 38. Kh2 {[%clk 0:00:15.9]} 38...
Qxa2 {[%clk 0:00:06]} 39. Qd8+ {[%clk 0:00:15.5]} 1-0

[Event "*** Titled Tuesday Blitz"]
[Site "Chess.com"]
[Date "2020.02.04"]
[Round "9"]
[White "marabu44"]
[Black "saraswathii"]
[Result "0-1"]
[WhiteElo "2269"]
[BlackElo "2172"]
[TimeControl "180+2"]
[EndTime "11:12:57 PST"]
[Termination "saraswathii won by resignation"]

1. b3 {[%clk 0:02:56.7]} 1... Nc6 {[%clk 0:02:59.4]} 2. Bb2 {[%clk 0:02:58.6]}
2... Nf6 {[%clk 0:03:00.2]} 3. Nf3 {[%clk 0:02:59.2]} 3... g6 {[%clk 0:03:01.3]}
4. e4 {[%clk 0:02:58.3]} 4... Bg7 {[%clk 0:03:01.3]} 5. e5 {[%clk 0:02:59.3]}
5... Nd5 {[%clk 0:03:01.6]} 6. c4 {[%clk 0:02:58.8]} 6... Nb6 {[%clk 0:03:02.6]}
7. d4 {[%clk 0:02:58]} 7... d6 {[%clk 0:03:02.6]} 8. exd6 {[%clk 0:02:57.7]}
8... cxd6 {[%clk 0:03:03.2]} 9. Qd2 {[%clk 0:02:57.3]} 9... O-O {[%clk 0:03:03]}
10. Be2 {[%clk 0:02:54.8]} 10... e5 {[%clk 0:03:02.1]} 11. d5 {[%clk 0:02:49.7]}
11... Ne7 {[%clk 0:03:01.7]} 12. Nc3 {[%clk 0:02:47.1]} 12... f5 {[%clk
0:03:01.9]} 13. O-O {[%clk 0:02:47.3]} 13... a6 {[%clk 0:03:01.5]} 14. Rae1
{[%clk 0:02:42.4]} 14... Kh8 {[%clk 0:03:01.7]} 15. Ng5 {[%clk 0:02:41.7]} 15...
Ng8 {[%clk 0:02:57.6]} 16. f4 {[%clk 0:02:40.5]} 16... Nf6 {[%clk 0:02:47.4]}
17. Bd3 {[%clk 0:02:29.3]} 17... e4 {[%clk 0:02:40.2]} 18. Bb1 {[%clk
0:02:29.7]} 18... h6 {[%clk 0:02:33.2]} 19. Nh3 {[%clk 0:02:25.4]} 19... Ng4
{[%clk 0:02:30]} 20. Nd1 {[%clk 0:02:24.8]} 20... Qc7 {[%clk 0:02:21.5]} 21.
Bxg7+ {[%clk 0:02:20.5]} 21... Qxg7 {[%clk 0:02:20.5]} 22. Ne3 {[%clk
0:02:20.7]} 22... Nf6 {[%clk 0:02:15.2]} 23. Nf2 {[%clk 0:02:19.4]} 23... Bd7
{[%clk 0:02:14]} 24. Nfd1 {[%clk 0:02:11.9]} 24... Nh5 {[%clk 0:02:09.2]} 25. g3
{[%clk 0:02:10.9]} 25... Nf6 {[%clk 0:02:09]} 26. Nc3 {[%clk 0:02:10.2]} 26...
a5 {[%clk 0:02:08.3]} 27. a4 {[%clk 0:02:09.7]} 27... Rfc8 {[%clk 0:02:05.6]}
28. Nb5 {[%clk 0:02:08.8]} 28... Bxb5 {[%clk 0:02:06.1]} 29. axb5 {[%clk
0:02:05.3]} 29... a4 {[%clk 0:02:06.8]} 30. Bc2 {[%clk 0:01:58.6]} 30... axb3
{[%clk 0:01:59.4]} 31. Bxb3 {[%clk 0:01:59.6]} 31... Ra3 {[%clk 0:01:59.1]} 32.
Qb2 {[%clk 0:01:57.9]} 32... Rca8 {[%clk 0:01:57.1]} 33. Ra1 {[%clk 0:01:57.4]}
33... Nfxd5 {[%clk 0:01:49.3]} 34. Qxg7+ {[%clk 0:01:57.8]} 34... Kxg7 {[%clk
0:01:49.6]} 35. Nxd5 {[%clk 0:01:49.7]} 35... Nxd5 {[%clk 0:01:42.5]} 36. Rxa3
{[%clk 0:01:42.5]} 36... Rxa3 {[%clk 0:01:42.3]} 37. Rb1 {[%clk 0:01:36.2]}
37... Nb6 {[%clk 0:01:24.4]} 38. Kf2 {[%clk 0:01:28.7]} 38... Kf6 {[%clk
0:01:24.4]} 39. Ke3 {[%clk 0:01:28.8]} 39... Nxc4+ {[%clk 0:01:23.3]} 40. Ke2
{[%clk 0:01:15.8]} 40... d5 {[%clk 0:01:13.3]} 41. Bxc4 {[%clk 0:01:13.3]} 41...
dxc4 {[%clk 0:01:15.2]} 42. Rc1 {[%clk 0:01:14.7]} 42... c3 {[%clk 0:01:14.6]}
43. Ke3 {[%clk 0:01:15.3]} 43... Ke6 {[%clk 0:01:09]} 44. Kd4 {[%clk 0:01:16]}
44... Kd6 {[%clk 0:01:09.9]} 45. Kc4 {[%clk 0:01:17.1]} 45... Ra2 {[%clk
0:00:53.4]} 46. Rxc3 {[%clk 0:01:15.4]} 46... Rxh2 {[%clk 0:00:53.6]} 47. Rc1
{[%clk 0:01:13]} 47... Rd2 {[%clk 0:00:51.5]} 48. Kc3 {[%clk 0:01:12.1]} 48...
Rd3+ {[%clk 0:00:52.2]} 49. Kc4 {[%clk 0:01:11.3]} 49... Rxg3 {[%clk 0:00:52.5]}
50. Rd1+ {[%clk 0:01:05.3]} 50... Rd3 {[%clk 0:00:51.3]} 51. Rh1 {[%clk
0:01:06.1]} 51... Rf3 {[%clk 0:00:45.7]} 52. Rxh6 {[%clk 0:01:06.6]} 52... Rxf4
{[%clk 0:00:46.8]} 53. Kd4 {[%clk 0:01:05.1]} 53... Rg4 {[%clk 0:00:45.3]} 54.
Rh7 {[%clk 0:01:03.7]} 54... b6 {[%clk 0:00:43.1]} 55. Rb7 {[%clk 0:01:04.2]}
55... e3+ {[%clk 0:00:43.6]} 56. Kxe3 {[%clk 0:01:04.6]} 56... Kc5 {[%clk
0:00:44.4]} 57. Rc7+ {[%clk 0:00:55.9]} 57... Kxb5 {[%clk 0:00:45]} 58. Rc8
{[%clk 0:00:57.1]} 58... Kb4 {[%clk 0:00:44.7]} 59. Kd3 {[%clk 0:00:54.4]} 59...
b5 {[%clk 0:00:44.9]} 60. Kc2 {[%clk 0:00:54.9]} 60... Rc4+ {[%clk 0:00:44.6]}
0-1

[Event "*** Titled Tuesday Blitz"]
[Site "Chess.com"]
[Date "2020.02.04"]
[Round "9"]
[White "M1711"]
[Black "MFBerna"]
[Result "1-0"]
[WhiteElo "2511"]
[BlackElo "2337"]
[TimeControl "180+2"]
[EndTime "11:13:22 PST"]
[Termination "M1711 won on time"]

1. a3 {[%clk 0:03:01.9]} 1... d5 {[%clk 0:03:00.8]} 2. h3 {[%clk 0:03:03]} 2...
e5 {[%clk 0:03:02.1]} 3. e3 {[%clk 0:03:04.5]} 3... Nc6 {[%clk 0:03:01.5]} 4. d3
{[%clk 0:03:03.4]} 4... Nf6 {[%clk 0:03:02.1]} 5. Nc3 {[%clk 0:03:04.9]} 5...
Bd6 {[%clk 0:03:00.8]} 6. Qd2 {[%clk 0:03:06.1]} 6... O-O {[%clk 0:03:01.1]} 7.
Nf3 {[%clk 0:03:06.2]} 7... Re8 {[%clk 0:03:01.1]} 8. Be2 {[%clk 0:03:07.1]}
8... d4 {[%clk 0:02:58.8]} 9. Ne4 {[%clk 0:02:59.9]} 9... dxe3 {[%clk
0:02:58.7]} 10. Qxe3 {[%clk 0:02:53]} 10... Nd5 {[%clk 0:02:52.4]} 11. Qd2
{[%clk 0:02:30.4]} 11... Nf4 {[%clk 0:02:53.2]} 12. O-O {[%clk 0:02:30.1]} 12...
Bxh3 {[%clk 0:02:20.2]} 13. gxh3 {[%clk 0:02:19.5]} 13... Qd7 {[%clk 0:02:21.1]}
14. Qd1 {[%clk 0:01:48.2]} 14... Nxh3+ {[%clk 0:02:13.9]} 15. Kh1 {[%clk
0:01:44.5]} 15... Qg4 {[%clk 0:01:50.6]} 16. Nh2 {[%clk 0:01:34.4]} 16... Qh4
{[%clk 0:01:48.4]} 17. Bg4 {[%clk 0:01:24.9]} 17... Nd4 {[%clk 0:01:31.3]} 18.
Bxh3 {[%clk 0:01:18.4]} 18... Qxh3 {[%clk 0:01:33.2]} 19. Be3 {[%clk 0:00:59.7]}
19... Ne6 {[%clk 0:01:22.9]} 20. Qg4 {[%clk 0:00:54.9]} 20... Qxg4 {[%clk
0:01:19.2]} 21. Nxg4 {[%clk 0:00:56.8]} 21... f5 {[%clk 0:01:12.3]} 22. Nxd6
{[%clk 0:00:56.3]} 22... cxd6 {[%clk 0:01:14.2]} 23. Nh2 {[%clk 0:00:57.1]}
23... Rec8 {[%clk 0:01:10.7]} 24. c3 {[%clk 0:00:54.4]} 24... d5 {[%clk
0:01:03.2]} 25. Bd2 {[%clk 0:00:48.5]} 25... Kf7 {[%clk 0:01:01.8]} 26. Rfe1
{[%clk 0:00:39.3]} 26... Kf6 {[%clk 0:01:02.8]} 27. Nf3 {[%clk 0:00:36.4]} 27...
e4 {[%clk 0:01:03.5]} 28. dxe4 {[%clk 0:00:35.9]} 28... dxe4 {[%clk 0:01:00.7]}
29. Nd4 {[%clk 0:00:31.8]} 29... Nxd4 {[%clk 0:00:50.9]} 30. cxd4 {[%clk
0:00:32.7]} 30... Rc2 {[%clk 0:00:52.8]} 31. Be3 {[%clk 0:00:11.1]} 31... g5
{[%clk 0:00:50.4]} 32. d5 {[%clk 0:00:07]} 32... f4 {[%clk 0:00:33.2]} 33. Bd4+
{[%clk 0:00:08.2]} 33... Kf5 {[%clk 0:00:34.8]} 34. Rad1 {[%clk 0:00:04.9]}
34... Rd8 {[%clk 0:00:35.5]} 35. Bc3 {[%clk 0:00:02.6]} 35... Rxf2 {[%clk
0:00:30.2]} 36. d6 {[%clk 0:00:03.1]} 36... e3 {[%clk 0:00:21.5]} 37. Rd5+
{[%clk 0:00:03.5]} 37... Ke4 {[%clk 0:00:19.9]} 38. Rxg5 {[%clk 0:00:03.8]}
38... Rxd6 {[%clk 0:00:19]} 39. Rh5 {[%clk 0:00:04.3]} 39... e2 {[%clk
0:00:13.7]} 40. Kg1 {[%clk 0:00:04.4]} 40... Ke3 {[%clk 0:00:06.3]} 41. Bb4
{[%clk 0:00:03.7]} 41... Rg6+ {[%clk 0:00:05.5]} 42. Kh1 {[%clk 0:00:03.3]}
42... Rf1+ {[%clk 0:00:07.1]} 43. Kh2 {[%clk 0:00:04.6]} 43... f3 {[%clk
0:00:04]} 44. Bc5+ {[%clk 0:00:03.1]} 44... Kd3 {[%clk 0:00:03.4]} 45. Bb4
{[%clk 0:00:02.8]} 45... Rg2+ {[%clk 0:00:03]} 46. Kh3 {[%clk 0:00:03.3]} 1-0

[Event "*** Titled Tuesday Blitz"]
[Site "Chess.com"]
[Date "2020.02.04"]
[Round "9"]
[White "tunadrol"]
[Black "sganerdene"]
[Result "0-1"]
[WhiteElo "2590"]
[BlackElo "2733"]
[TimeControl "180+2"]
[EndTime "11:13:26 PST"]
[Termination "sganerdene won by resignation"]

1. e4 {[%clk 0:03:01.9]} 1... c5 {[%clk 0:03:00.9]} 2. Nf3 {[%clk 0:03:02.2]}
2... d6 {[%clk 0:03:02]} 3. d4 {[%clk 0:03:01.3]} 3... cxd4 {[%clk 0:03:03.1]}
4. Nxd4 {[%clk 0:03:02.9]} 4... Nf6 {[%clk 0:03:04.6]} 5. Nc3 {[%clk 0:03:04.5]}
5... Nc6 {[%clk 0:03:06]} 6. Be3 {[%clk 0:03:03]} 6... e6 {[%clk 0:03:06.8]} 7.
f3 {[%clk 0:03:03.8]} 7... Be7 {[%clk 0:03:08.1]} 8. Qd2 {[%clk 0:03:04.6]} 8...
O-O {[%clk 0:03:09.7]} 9. O-O-O {[%clk 0:03:06.2]} 9... d5 {[%clk 0:03:11.1]}
10. Qe1 {[%clk 0:03:01.7]} 10... e5 {[%clk 0:03:09.9]} 11. Nxc6 {[%clk
0:03:02.4]} 11... bxc6 {[%clk 0:03:11.8]} 12. exd5 {[%clk 0:03:03.7]} 12... cxd5
{[%clk 0:03:12]} 13. Bg5 {[%clk 0:03:04.4]} 13... Be6 {[%clk 0:03:12.3]} 14.
Qxe5 {[%clk 0:02:59.7]} 14... Qa5 {[%clk 0:03:10.5]} 15. Qd4 {[%clk 0:02:37.9]}
15... Rab8 {[%clk 0:03:04.7]} 16. Bd3 {[%clk 0:02:07.6]} 16... Rb4 {[%clk
0:02:59.7]} 17. Qe5 {[%clk 0:01:50.6]} 17... Rfb8 {[%clk 0:03:00.3]} 18. b3
{[%clk 0:01:44.2]} 18... Qc5 {[%clk 0:02:44.6]} 19. Ne2 {[%clk 0:01:27.2]} 19...
a5 {[%clk 0:02:19.3]} 20. Be3 {[%clk 0:01:23.6]} 20... Qc8 {[%clk 0:02:05.3]}
21. Bd4 {[%clk 0:01:10.7]} 21... a4 {[%clk 0:02:02.5]} 22. Kb1 {[%clk
0:01:05.3]} 22... Ne8 {[%clk 0:01:58.7]} 23. Qe3 {[%clk 0:00:59.9]} 23... Bf6
{[%clk 0:01:20]} 24. Bxf6 {[%clk 0:00:45.3]} 24... Nxf6 {[%clk 0:01:21.9]} 25.
Nd4 {[%clk 0:00:46.5]} 25... Qc5 {[%clk 0:01:22.6]} 26. Rhe1 {[%clk 0:00:40]}
26... Rxd4 {[%clk 0:01:16.2]} 27. Qxd4 {[%clk 0:00:39.9]} 27... Qxd4 {[%clk
0:01:16.8]} 28. Bxh7+ {[%clk 0:00:40.7]} 28... Kxh7 {[%clk 0:01:18.7]} 29. Rxd4
{[%clk 0:00:41.6]} 29... axb3 {[%clk 0:01:19.9]} 30. cxb3 {[%clk 0:00:40.1]}
30... Ne8 {[%clk 0:01:19.6]} 31. Kc2 {[%clk 0:00:31.2]} 31... Nd6 {[%clk
0:01:20.7]} 32. g4 {[%clk 0:00:27.7]} 32... Kg6 {[%clk 0:01:19.4]} 33. a4 {[%clk
0:00:26.7]} 33... Nb7 {[%clk 0:01:15.8]} 34. b4 {[%clk 0:00:24.1]} 34... Kf6
{[%clk 0:01:15.2]} 35. h4 {[%clk 0:00:22.6]} 35... Nd6 {[%clk 0:01:08]} 36. b5
{[%clk 0:00:21.6]} 36... Nc4 {[%clk 0:01:09.3]} 37. Kb3 {[%clk 0:00:20.6]} 37...
Ra8 {[%clk 0:01:10.6]} 38. Kb4 {[%clk 0:00:18.4]} 38... g6 {[%clk 0:01:10.6]}
39. g5+ {[%clk 0:00:15]} 39... Kf5 {[%clk 0:01:09.9]} 40. Re2 {[%clk 0:00:14.5]}
40... Ra7 {[%clk 0:00:59.9]} 41. f4 {[%clk 0:00:12.4]} 41... Kg4 {[%clk
0:00:58.5]} 42. Ra2 {[%clk 0:00:13.3]} 42... Kf3 {[%clk 0:00:57.8]} 43. a5
{[%clk 0:00:11.1]} 43... Ke3 {[%clk 0:00:59.1]} 44. Rd1 {[%clk 0:00:06.6]} 44...
d4 {[%clk 0:00:58]} 45. f5 {[%clk 0:00:05.5]} 45... gxf5 {[%clk 0:00:54.9]} 46.
g6 {[%clk 0:00:06.9]} 46... d3 {[%clk 0:00:48.8]} 47. g7 {[%clk 0:00:05.9]}
47... Ra8 {[%clk 0:00:49.2]} 48. b6 {[%clk 0:00:05.1]} 48... Nxb6 {[%clk
0:00:47.7]} 49. axb6 {[%clk 0:00:05.2]} 49... Bxa2 {[%clk 0:00:48.8]} 50. Kc5
{[%clk 0:00:03.3]} 50... Rb8 {[%clk 0:00:48.7]} 51. Kc6 {[%clk 0:00:04.2]} 51...
f6 {[%clk 0:00:48]} 52. Kc7 {[%clk 0:00:05.2]} 52... Rxb6 {[%clk 0:00:46.5]} 53.
Kxb6 {[%clk 0:00:06.6]} 53... d2 {[%clk 0:00:47.2]} 54. h5 {[%clk 0:00:07.9]}
54... Bg8 {[%clk 0:00:48.2]} 55. h6 {[%clk 0:00:08.5]} 55... Ke2 {[%clk
0:00:49.6]} 56. Ra1 {[%clk 0:00:09.3]} 56... d1=Q {[%clk 0:00:50.6]} 57. Rxd1
{[%clk 0:00:10.7]} 57... Kxd1 {[%clk 0:00:52.5]} 58. Kc5 {[%clk 0:00:12.2]}
58... f4 {[%clk 0:00:53.9]} 59. Kd4 {[%clk 0:00:13.2]} 59... Ke2 {[%clk
0:00:54.7]} 60. Ke4 {[%clk 0:00:14.4]} 60... f3 {[%clk 0:00:56.1]} 61. Kf5
{[%clk 0:00:15.5]} 61... f2 {[%clk 0:00:57.2]} 62. Kg6 {[%clk 0:00:16.7]} 62...
f1=Q {[%clk 0:00:58.4]} 63. h7 {[%clk 0:00:17.9]} 63... Qg2+ {[%clk 0:00:59.7]}
64. Kxf6 {[%clk 0:00:19.5]} 64... Bxh7 {[%clk 0:01:00.5]} 0-1